fUSD/lending_fUSD_20251130
["ID","MTS","AMOUNT","RATE_DAILY","PERIOD"]
[395168086,1764503669190,4152.82948285,0.00011,2]
[395168087,1764503669212,4152.82948285,0.00011,2]
[395168088,1764503669233,4152.82948285,0.00011,2]
[395168089,1764503669253,4152.82948285,0.00011,2]
[395168090,1764503669274,4152.82948285,0.00011,2]
[395168091,1764503669294,4152.82948285,0.00011,2]
[395168092,1764503669315,4152.82948285,0.00011,2]
[395168093,1764503669336,4152.82948285,0.00011,2]
[395168094,1764503669357,4152.82948285,0.00011,2]
[395168095,1764503669378,4152.82948285,0.00011,2]
[395168116,1764503706420,-300.0,0.00010999,2]
[395168117,1764503706450,-1200.0,0.00010999,2]
[395168133,1764503711934,5523.0,0.000143,5]
[395168154,1764503743947,3000.22473774,0.000143,5]
[395168155,1764503743971,2522.77526226,0.000143,5]
[395168157,1764503755451,-443.41062993,0.00011,2]
[395168158,1764503755583,-10000.01,0.00011,2]
[395168159,1764503755781,-10000.01,0.00011,2]
[395168160,1764503755974,-10000.01,0.00011,2]
[395168192,1764503763082,-300.0,0.00010999,2]
[395168193,1764503763130,-9400.01,0.00011,2]
[395168198,1764503767475,-2327.19254311,0.00011,2]
[395168199,1764503767503,-250.0,0.00011354,2]
[395168200,1764503767530,-250.0,0.00011653,2]
[395168201,1764503767562,-215.85912561,0.00011707,2]
[395168202,1764503767590,-866.49959624,0.00011707,2]
[395168203,1764503767620,-151.0,0.00011804,2]
[395168204,1764503767653,-151.0,0.00011804,2]
[395168210,1764503775383,5468.0,0.000142,5]
[395168221,1764503821832,150.0,0.00011806,2]
[395168230,1764503825775,151.0,0.00011807,2]
[395168232,1764503826141,300.0,0.00011807,2]
[395168235,1764503826409,151.0,0.00011807,2]
[395168238,1764503827020,151.0,0.00011807,2]
[395168241,1764503827625,151.0,0.00011807,2]
[395168244,1764503828259,151.0,0.00011807,2]
[395168251,1764503830400,151.0,0.00011807,2]
[395168252,1764503830501,220.90747008,0.00011707,2]
[395168253,1764503830527,158.26386828,0.00011707,2]
[395168257,1764503831443,151.8981321,0.00011807,2]
[395168258,1764503831498,965.83057924,0.00011807,2]
[395168260,1764503831879,218.10428989,0.00011807,2]
[395168262,1764503832356,533.88981491,0.00011807,2]
[395168267,1764503833797,151.0,0.00011807,2]
[395168278,1764503837432,500.0,0.00011807,2]
[395168279,1764503837608,3000.0,0.00011807,2]
[395168281,1764503837707,151.0,0.00011807,2]
[395168282,1764503837742,151.0,0.00011807,2]
[395168284,1764503838181,500.0,0.00011807,2]
[395168285,1764503838308,151.0,0.00011807,2]
[395168287,1764503838346,151.0,0.00011807,2]
[395168288,1764503838876,500.0,0.00011807,2]
[395168289,1764503838916,151.0,0.00011807,2]
[395168290,1764503838952,151.0,0.00011807,2]
[395168291,1764503839476,500.0,0.00011807,2]
[395168292,1764503839514,151.0,0.00011807,2]
[395168293,1764503839559,151.0,0.00011807,2]
[395168294,1764503840035,500.0,0.00011807,2]
[395168295,1764503840073,1000.0,0.00011807,2]
[395168296,1764503840111,113.02331558,0.00011807,2]
[395168297,1764503840133,386.97668442,0.00011807,2]
[395168298,1764503840173,151.0,0.00011807,2]
[395168299,1764503840209,151.0,0.00011807,2]
[395168300,1764503841819,500.0,0.00011807,2]
[395168301,1764503841858,1000.0,0.00011807,2]
[395168302,1764503841895,151.0,0.00011807,2]
[395168303,1764503841937,564.39360719,0.00011807,2]
[395168304,1764503842018,151.0,0.00011807,2]
[395168305,1764503842057,1000.0,0.00011807,2]
[395168306,1764503842094,500.0,0.00011807,2]
[395168307,1764503842142,151.0,0.00011807,2]
[395168308,1764503842191,257.91778498,0.00011807,2]
[395168309,1764503842239,160.82386666,0.00011807,2]
[395168310,1764503842281,500.0,0.00011807,2]
[395168311,1764503842321,1000.0,0.00011807,2]
[395168312,1764503842359,151.0,0.00011807,2]
[395168313,1764503842426,200.0,0.00011807,2]
[395168314,1764503842464,500.0,0.00011807,2]
[395168315,1764503842511,1000.0,0.00011807,2]
[395168316,1764503842572,151.0,0.00011807,2]
[395168317,1764503843065,500.0,0.00011807,2]
[395168318,1764503843123,872.89805675,0.00011807,2]
[395168319,1764503852986,-127.10194325,0.00011807,2]
[395168320,1764503853014,-151.0,0.00011807,2]
[395168321,1764503853410,-226.1704522,0.00011807,2]
[395168322,1764503853438,-151.0,0.00011807,2]
[395168323,1764503853467,-1000.0,0.00011807,2]
[395168324,1764503853496,-151.0,0.00011807,2]
[395168325,1764503853526,-1000.0,0.00011807,2]
[395168326,1764503853559,-151.0,0.00011807,2]
[395168327,1764503853595,-1000.0,0.00011807,2]
[395168328,1764503853630,-500.0,0.00011807,2]
[395168329,1764503853663,-234.88777355,0.00011807,2]
[395168330,1764503853696,-115.689662,0.00011807,2]
[395168349,1764503888342,10000.01,7.945e-05,2]
[395168350,1764503888366,1548.062871,7.945e-05,2]
[395168363,1764503960459,556.39807444,7.945e-05,2]
[395168364,1764503960499,671.39824189,7.945e-05,2]
[395168365,1764503960534,307.93848892,7.945e-05,2]
[395168371,1764504038158,-260.19659,0.00011647,2]
[395168372,1764504038188,-171.98905064,0.00011706,2]
[395168373,1764504038216,-300.0,0.00011706,2]
[395168374,1764504038246,-300.0,0.00011706,2]
[395168375,1764504038274,-1200.0,0.00011706,2]
[395168376,1764504038302,-171.98905064,0.00011707,2]
[395168377,1764504038329,-1000.0,0.00011707,2]
[395168378,1764504038357,-691.66061744,0.00011707,2]
[395168379,1764504038535,-1808.33938256,0.00011707,2]
[395168380,1764504038567,-500.0,0.00011707,2]
[395168381,1764504038596,-1000.0,0.00011707,2]
[395168382,1764504038626,-150.0,0.00011806,2]
[395168383,1764504038654,-500.0,0.00011806,2]
[395168384,1764504038683,-277.80011146,0.00011806,2]
[395168385,1764504038711,-182.37990694,0.00011806,2]
[395168386,1764504038742,-201.94698626,0.00011806,2]
[395168387,1764504038773,-259.07722556,0.00011806,2]
[395168388,1764504047499,-240.92277444,0.00011806,2]
[395168389,1764504047527,-439.28226252,0.00011806,2]
[395168390,1764504047560,-468.62475935,0.00011806,2]
[395168391,1764504047590,-384.310338,0.00011807,2]
[395168392,1764504047619,-500.0,0.00011807,2]
[395168393,1764504047651,-500.0,0.00011807,2]
[395168394,1764504047686,-474.29473517,0.00011807,2]
[395168395,1764504047717,-1000.0,0.00011807,2]
[395168396,1764504047749,-250.0,0.00011807,2]
[395168397,1764504047776,-601.61666286,0.00011807,2]
[395168398,1764504047804,-74.89231105,0.00011807,2]
[395168401,1764504076010,-2500.0,0.00011707,2]
[395168402,1764504076041,-300.0,0.00011806,2]
[395168403,1764504076077,-500.0,0.00011806,2]
[395168404,1764504076111,-500.0,0.00011806,2]
[395168405,1764504076144,-500.0,0.00011806,2]
[395168406,1764504076178,-500.0,0.00011806,2]
[395168408,1764504113409,-4672.681,0.00011571,2]
[395168409,1764504113439,-262.881,0.00011571,2]
[395168410,1764504127146,-3036.49060297,0.00011776,2]
[395168411,1764504127176,-331.7749211,0.00011776,2]
[395168412,1764504127207,-300.0,0.00011805,2]
[395168415,1764504135246,-2042.03648169,0.00011776,2]
[395168417,1764504149855,-6920.11707603,0.00011806,2]
[395168450,1764504239472,-1000.0,0.00011707,2]
[395168451,1764504239500,-599.5549,0.00011707,2]
[395168452,1764504239545,-6800.9002,0.00011707,2]
[395168453,1764504239708,-10000.01,0.00011707,2]
[395168454,1764504239830,-10000.01,0.00011707,2]
[395168457,1764504358467,-215.85912561,0.00011707,2]
[395168458,1764504358496,-219.6775,0.00011707,2]
[395168459,1764504358523,-2352.4223,0.00011707,2]
[395168460,1764504358550,-1000.0,0.00011707,2]
[395168461,1764504358577,-1200.0,0.00011804,2]
[395168462,1764504358659,-24.09214878,0.00011804,2]
[395168463,1764504359001,-125.90785122,0.00011804,2]
[395168464,1764504359029,-300.0,0.00011804,2]
[395168465,1764504359058,-250.0,0.00011805,2]
[395168466,1764504359148,-8648.19429756,0.00011806,2]
[395168467,1764504359161,-1922.39583686,0.00011806,2]
[395168468,1764504359170,-151.0,0.00011807,2]
[395168469,1764504359179,-500.0,0.00011807,2]
[395168470,1764504359188,-500.0,0.00011807,2]
[395168471,1764504360193,-1005.29872988,0.00011807,2]
[395168472,1764504361908,150.0,0.00011806,2]
[395168473,1764504363290,-300.0,0.00011807,2]
[395168474,1764504365136,-1058.00895066,0.00011807,2]
[395168475,1764504365724,151.0,0.00011807,2]
[395168476,1764504367202,-255.92714014,0.00011807,2]
[395168477,1764504370234,-828.28028163,0.00011807,2]
[395168478,1764504371236,-281.76093126,0.00011807,2]
[395168479,1764504373335,-300.0,0.00011807,2]
[395168480,1764504374870,-553.28764392,0.00011807,2]
[395168481,1764504376364,-424.31960322,0.00011807,2]
[395168482,1764504377828,-193.59002877,0.00011807,2]
[395168483,1764504379202,500.0,0.00011805,2]
[395168484,1764504379242,500.0,0.00011805,2]
[395168485,1764504379283,500.0,0.00011805,2]
[395168486,1764504379327,500.0,0.00011805,2]
[395168487,1764504379365,500.0,0.00011805,2]
[395168488,1764504379403,500.0,0.00011805,2]
[395168489,1764504379442,500.0,0.00011805,2]
[395168490,1764504379975,500.0,0.00011805,2]
[395168491,1764504380014,500.0,0.00011805,2]
[395168492,1764504380053,500.0,0.00011805,2]
[395168493,1764504380091,500.0,0.00011805,2]
[395168494,1764504380128,500.0,0.00011805,2]
[395168495,1764504380166,500.0,0.00011805,2]
[395168496,1764504380204,500.0,0.00011805,2]
[395168497,1764504381563,500.0,0.00011805,2]
[395168498,1764504381601,500.0,0.00011805,2]
[395168499,1764504381638,500.0,0.00011805,2]
[395168500,1764504381679,500.0,0.00011805,2]
[395168501,1764504381717,500.0,0.00011805,2]
[395168502,1764504381753,199.01,0.00011805,2]
[395168503,1764504381777,300.99,0.00011805,2]
[395168504,1764504381825,500.0,0.00011805,2]
[395168505,1764504381861,500.0,0.00011805,2]
[395168506,1764504381904,500.0,0.00011805,2]
[395168507,1764504381945,500.0,0.00011805,2]
[395168508,1764504381983,500.0,0.00011805,2]
[395168509,1764504382026,500.0,0.00011805,2]
[395168510,1764504382063,500.0,0.00011805,2]
[395168511,1764504382101,500.0,0.00011805,2]
[395168512,1764504382138,500.0,0.00011805,2]
[395168513,1764504382175,500.0,0.00011805,2]
[395168514,1764504382213,500.0,0.00011805,2]
[395168515,1764504382251,500.0,0.00011805,2]
[395168516,1764504382294,500.0,0.00011805,2]
[395168517,1764504382337,500.0,0.00011805,2]
[395168518,1764504382381,500.0,0.00011805,2]
[395168519,1764504382425,500.0,0.00011805,2]
[395168520,1764504382479,500.0,0.00011805,2]
[395168521,1764504382518,500.0,0.00011805,2]
[395168522,1764504382556,500.0,0.00011805,2]
[395168524,1764504395765,151.0,0.00011807,2]
[395168525,1764504396678,48.02,0.00011807,2]
[395168526,1764504396700,104.90706705,0.00011807,2]
[395168527,1764504396888,500.0,0.00011805,2]
[395168528,1764504396926,500.0,0.00011805,2]
[395168529,1764504396967,500.0,0.00011805,2]
[395168530,1764504397011,500.0,0.00011805,2]
[395168531,1764504397049,500.0,0.00011805,2]
[395168532,1764504397089,500.0,0.00011805,2]
[395168533,1764504397128,500.0,0.00011805,2]
[395168534,1764504397167,500.0,0.00011805,2]
[395168535,1764504397204,500.0,0.00011805,2]
[395168536,1764504397242,500.0,0.00011805,2]
[395168537,1764504397659,500.0,0.00011805,2]
[395168538,1764504397700,500.0,0.00011805,2]
[395168539,1764504397742,500.0,0.00011805,2]
[395168540,1764504397781,500.0,0.00011805,2]
[395168541,1764504397820,500.0,0.00011805,2]
[395168542,1764504397860,500.0,0.00011805,2]
[395168543,1764504397900,500.0,0.00011805,2]
[395168544,1764504397947,500.0,0.00011805,2]
[395168545,1764504397995,500.0,0.00011805,2]
[395168546,1764504398040,395.10293295,0.00011805,2]
[395168547,1764504398066,104.89706705,0.00011805,2]
[395168548,1764504398109,500.0,0.00011805,2]
[395168549,1764504398154,500.0,0.00011805,2]
[395168550,1764504398195,500.0,0.00011805,2]
[395168553,1764504398235,500.0,0.00011805,2]
[395168554,1764504398275,500.0,0.00011805,2]
[395168555,1764504398321,500.0,0.00011805,2]
[395168556,1764504398361,500.0,0.00011805,2]
[395168557,1764504398402,500.0,0.00011805,2]
[395168558,1764504398441,500.0,0.00011805,2]
[395168559,1764504398482,500.0,0.00011805,2]
[395168560,1764504398530,500.0,0.00011805,2]
[395168561,1764504398570,500.0,0.00011805,2]
[395168562,1764504398610,500.0,0.00011805,2]
[395168563,1764504398650,500.0,0.00011805,2]
[395168564,1764504398689,500.0,0.00011805,2]
[395168565,1764504398728,500.0,0.00011805,2]
[395168566,1764504398768,500.0,0.00011805,2]
[395168567,1764504398807,500.0,0.00011805,2]
[395168568,1764504398856,500.0,0.00011805,2]
[395168569,1764504398897,395.11293295,0.00011805,2]
[395168570,1764504398922,104.88706705,0.00011805,2]
[395168571,1764504398960,151.0,0.00011807,2]
[395168572,1764504399000,500.0,0.00011805,2]
[395168573,1764504399044,500.0,0.00011805,2]
[395168574,1764504399085,500.0,0.00011805,2]
[395168575,1764504399130,500.0,0.00011805,2]
[395168576,1764504399173,500.0,0.00011805,2]
[395168577,1764504399906,151.0,0.00011807,2]
[395168578,1764504400811,156.78120115,0.00011807,2]
[395168579,1764504405025,2500.0,0.00011707,2]
[395168580,1764504409943,290.30305591,0.00011707,2]
[395168581,1764504410653,500.0,0.00011806,2]
[395168582,1764504410703,286.46692711,0.00011806,2]
[395168584,1764504421296,300.0,0.00011806,2]
[395168586,1764504433453,500.0,0.00011807,2]
[395168587,1764504434068,500.0,0.00011807,2]
[395168588,1764504434909,151.0,0.00011807,2]
[395168589,1764504435544,151.0,0.00011807,2]
[395168593,1764504436144,151.0,0.00011807,2]
[395168594,1764504436756,151.0,0.00011807,2]
[395168595,1764504437377,151.0,0.00011807,2]
[395168596,1764504439627,249.0,0.00011807,2]
[395168597,1764504441793,500.0,0.00011805,2]
[395168598,1764504441855,601.55324527,0.00011805,2]
[395168599,1764504454756,500.0,0.00011805,2]
[395168600,1764504454793,500.0,0.00011805,2]
[395168601,1764504454830,500.0,0.00011805,2]
[395168602,1764504454867,500.0,0.00011805,2]
[395168603,1764504454909,500.0,0.00011805,2]
[395168604,1764504454947,500.0,0.00011805,2]
[395168605,1764504454983,500.0,0.00011805,2]
[395168606,1764504455022,500.0,0.00011805,2]
[395168607,1764504455062,500.0,0.00011805,2]
[395168608,1764504455104,500.0,0.00011805,2]
[395168609,1764504455142,500.0,0.00011805,2]
[395168610,1764504455179,487.43123489,0.00011805,2]
[395168611,1764504455217,500.0,0.00011805,2]
[395168612,1764504455255,107.02551984,0.00011805,2]
[395168613,1764504455278,392.97448016,0.00011805,2]
[395168614,1764504455317,500.0,0.00011805,2]
[395168615,1764504455357,500.0,0.00011805,2]
[395168616,1764504455394,500.0,0.00011805,2]
[395168617,1764504455432,500.0,0.00011805,2]
[395168618,1764504455473,500.0,0.00011805,2]
[395168619,1764504455537,500.0,0.00011805,2]
[395168620,1764504455573,500.0,0.00011805,2]
[395168621,1764504455613,500.0,0.00011805,2]
[395168622,1764504455657,500.0,0.00011805,2]
[395168623,1764504455694,500.0,0.00011805,2]
[395168625,1764504462167,151.0,0.00011807,2]
[395168626,1764504462238,151.0,0.00011807,2]
[395168627,1764504462322,151.0,0.00011807,2]
[395168628,1764504462928,151.0,0.00011807,2]
[395168629,1764504463550,151.0,0.00011807,2]
[395168631,1764504481303,300.0,0.00011806,2]
[395168632,1764504487641,500.0,0.00011676,2]
[395168644,1764504527512,1837.83283353,0.00011707,2]
[395168645,1764504541907,150.0,0.00011706,2]
[395168667,1764504602553,300.0,0.00011706,2]
[395168668,1764504602592,300.0,0.00011706,2]
[395168669,1764504602683,1200.0,0.00011706,2]
[395168673,1764504628090,6212.17716647,0.00011607,2]
[395168674,1764504628112,5257.22985481,0.00011607,2]
[395168680,1764504631921,-1000.0,0.00011707,2]
[395168681,1764504631931,-32.28714969,0.00011707,2]
[395168682,1764504631968,-408.2574532,0.00011707,2]
[395168683,1764504631980,-323.3292545,0.00011707,2]
[395168684,1764504631992,-328.3290225,0.00011707,2]
[395168685,1764504632022,-1277.81018795,0.00011707,2]
[395168686,1764504632033,-607.56498033,0.00011707,2]
[395168688,1764504632130,-476.85661962,0.00011707,2]
[395168689,1764504632142,-391.23086674,0.00011707,2]
[395168690,1764504632153,-569.31587421,0.00011707,2]
[395168691,1764504632165,-1100.7542825,0.00011707,2]
[395168740,1764504638111,-754484.26430876,0.00011707,2]
[395168741,1764504638123,-3411.8224,0.00011707,2]
[395168742,1764504638132,-14002.5946,0.00011707,2]
[395168743,1764504638142,-1072.21727013,0.00011806,2]
[395168744,1764504638152,-200.0,0.00011807,2]
[395168745,1764504638162,-28198.90589052,0.00011807,2]
[395168746,1764504638171,-9999.99,0.00011807,2]
[395168747,1764504638181,-150.99,0.00011807,2]
[395168748,1764504638191,-9499.58,0.00011807,2]
[395168749,1764504638200,-310.82,0.00011807,2]
[395168750,1764504638210,-250.0,0.00011856,2]
[395168751,1764504638219,-250.0,0.000119,2]
[395168752,1764504638229,-250.0,0.000119,2]
[395168753,1764504638239,-250.0,0.000119,2]
[395168754,1764504638249,-250.0,0.000119,2]
[395168755,1764504638258,-250.0,0.000119,2]
[395168756,1764504638267,-250.0,0.000119,2]
[395168757,1764504638277,-250.0,0.000119,2]
[395168758,1764504638286,-250.0,0.000119,2]
[395168759,1764504638296,-250.0,0.000119,2]
[395168760,1764504638306,-250.0,0.000119,2]
[395168761,1764504638316,-250.0,0.000119,2]
[395168762,1764504638325,-250.0,0.000119,2]
[395168763,1764504638335,-250.0,0.000119,2]
[395168764,1764504638344,-250.0,0.000119,2]
[395168765,1764504638353,-250.0,0.000119,2]
[395168766,1764504638362,-250.0,0.000119,2]
[395168767,1764504638371,-250.0,0.000119,2]
[395168768,1764504638380,-250.0,0.000119,2]
[395168770,1764504638390,-250.0,0.000119,2]
[395168771,1764504638399,-250.0,0.000119,2]
[395168772,1764504638408,-250.0,0.000119,2]
[395168773,1764504638418,-250.0,0.000119,2]
[395168774,1764504638427,-250.0,0.000119,2]
[395168775,1764504638438,-250.0,0.000119,2]
[395168776,1764504638447,-331.9,0.000119,2]
[395168777,1764504638457,-1428.12,0.000119,2]
[395168778,1764504638467,-19434.36,0.00012087,2]
[395168779,1764504638476,-11469.40702123,0.00012195,2]
[395168780,1764504638486,-9999.99,0.00012204,2]
[395168782,1764504638495,-150.99,0.00012204,2]
[395168783,1764504638505,-151.0,0.00012247,2]
[395168784,1764504638514,-2000.0,0.00012247,2]
[395168785,1764504638524,-151.0,0.00012247,2]
[395168786,1764504638533,-1000.0,0.00012247,2]
[395168787,1764504638542,-151.0,0.00012247,2]
[395168788,1764504638552,-1000.0,0.00012247,2]
[395168789,1764504638561,-151.0,0.00012247,2]
[395168790,1764504638570,-1000.0,0.00012247,2]
[395168791,1764504638579,-288.42915717,0.00012247,2]
[395168792,1764504638588,-1000.0,0.00012247,2]
[395168793,1764504638597,-1000.0,0.00012247,2]
[395168794,1764504638606,-339.97703586,0.00012247,2]
[395168795,1764504638616,-1000.0,0.00012247,2]
[395168796,1764504638635,-500.0,0.00012247,2]
[395168797,1764504638646,-1000.0,0.00012247,2]
[395168798,1764504638656,-500.0,0.00012247,2]
[395168799,1764504638666,-319.96400785,0.00012247,2]
[395168800,1764504638675,-1000.0,0.00012247,2]
[395168801,1764504638685,-500.0,0.00012247,2]
[395168802,1764504638694,-1000.0,0.00012247,2]
[395168803,1764504638704,-1000.0,0.00012247,2]
[395168804,1764504638715,-1000.0,0.00012247,2]
[395168805,1764504638724,-1000.0,0.00012247,2]
[395168806,1764504638733,-1000.0,0.00012247,2]
[395168807,1764504638744,-151.0,0.00012247,2]
[395168808,1764504638753,-620.0,0.00012247,2]
[395168809,1764504638763,-334.5472959,0.00012247,2]
[395168810,1764504638772,-257.91778498,0.00012247,2]
[395168811,1764504638782,-1000.0,0.00012247,2]
[395168812,1764504638791,-578.20924308,0.00012247,2]
[395168813,1764504638800,-1837.83283351,0.00012284,2]
[395168814,1764504638811,-9874.9985423,0.00012693,2]
[395168815,1764504638820,-11469.40702123,0.00012783,2]
[395168816,1764504638829,-665.4527041,0.00012795,2]
[395168817,1764504638839,-420.0,0.00012855,2]
[395168818,1764504638848,-1837.83283351,0.00012861,2]
[395168819,1764504638858,-1680.0,0.00012877,2]
[395168820,1764504638867,-281.90988596,0.00012878,2]
[395168821,1764504638877,-250.0,0.00012878,2]
[395168822,1764504638888,-250.0,0.00012988,2]
[395168823,1764504638899,-250.0,0.00012988,2]
[395168824,1764504638908,-922.28160327,0.0001313,2]
[395168825,1764504638918,-456.0,0.00013216,2]
[395168826,1764504638928,-1837.83283351,0.00013438,2]
[395168827,1764504638938,-151.0,0.00013616,2]
[395168828,1764504638948,-334.5472959,0.00013616,2]
[395168829,1764504638958,-267.46074303,0.00013616,2]
[395168830,1764504638968,-500.0,0.00013698,2]
[395168831,1764504638978,-500.0,0.00013698,2]
[395168832,1764504638988,-500.0,0.00013698,2]
[395168833,1764504638999,-502.01842197,0.00013698,2]
[395168834,1764504639009,-166.66,0.00013819,2]
[395168835,1764504639018,-500.0,0.00013833,2]
[395168836,1764504639028,-1837.83283351,0.00014015,2]
[395168837,1764504639038,-1500.0,0.00014026,2]
[395168838,1764504639047,-166.66,0.0001411,2]
[395168839,1764504639057,-587.0,0.00014116,2]
[395168840,1764504639066,-2351.0,0.00014164,2]
[395168841,1764504639076,-4575.69,0.00014264,2]
[395168842,1764504639088,-155.57,0.00014303,2]
[395168843,1764504639097,-200.0,0.00014356,2]
[395168844,1764504639107,-166.66,0.00014401,2]
[395168845,1764504639116,-2751.0,0.00014428,2]
[395168846,1764504639125,-1000.0,0.0001444,2]
[395168847,1764504639135,-166.66,0.00014457,2]
[395168848,1764504639144,-200.0,0.0001447,2]
[395168849,1764504639154,-237.3246584,0.00014521,2]
[395168850,1764504639163,-1837.83283351,0.00014592,2]
[395168851,1764504639173,-4242.55,0.00014646,2]
[395168852,1764504639183,-166.66,0.00014692,2]
[395168853,1764504639192,-166.66,0.00014935,2]
[395168854,1764504639201,-166.66,0.00014983,2]
[395168855,1764504639211,-277.35679052,0.00014985,2]
[395168856,1764504639220,-610.0,0.00015114,2]
[395168857,1764504639229,-1321.0,0.00015114,2]
[395168858,1764504639239,-1258.0,0.00015114,2]
[395168859,1764504639248,-562.0,0.00015114,2]
[395168860,1764504639257,-6506.0,0.00015114,2]
[395168861,1764504639267,-252.0,0.00015114,2]
[395168862,1764504639276,-177.0,0.00015134,2]
[395168863,1764504639286,-1837.83283351,0.00015169,2]
[395168864,1764504639296,-1716.0,0.00015266,2]
[395168865,1764504639305,-166.66,0.00015274,2]
[395168866,1764504639314,-1716.0,0.0001535,2]
[395168867,1764504639323,-1716.0,0.00015392,2]
[395168868,1764504639332,-166.66,0.00015412,2]
[395168869,1764504639342,-1716.0,0.00015491,2]
[395168870,1764504639351,-523.0,0.000155,2]
[395168871,1764504639360,-150.0,0.00015534,2]
[395168872,1764504639370,-150.0,0.00015534,2]
[395168873,1764504639379,-150.0,0.00015534,2]
[395168874,1764504639388,-150.0,0.00015534,2]
[395168875,1764504639398,-3292.0,0.00015581,2]
[395168876,1764504639407,-1716.0,0.00015614,2]
[395168877,1764504639416,-150.0,0.00015633,2]
[395168878,1764504639426,-150.0,0.00015633,2]
[395168879,1764504639435,-150.0,0.00015633,2]
[395168880,1764504639445,-150.0,0.00015633,2]
[395168881,1764504639455,-150.0,0.00015633,2]
[395168882,1764504639465,-3442.0,0.00015633,2]
[395168883,1764504639475,-1603.0,0.00015633,2]
[395168884,1764504639485,-155.57,0.00015733,2]
[395168885,1764504639495,-1837.83283351,0.00015746,2]
[395168886,1764504639505,-1716.0,0.00015747,2]
[395168887,1764504639515,-375.48512618,0.00015754,2]
[395168888,1764504639525,-1716.0,0.00015815,2]
[395168889,1764504639534,-1716.0,0.00015886,2]
[395168890,1764504639543,-166.66,0.00015889,2]
[395168891,1764504639552,-5885.66279061,0.000159,2]
[395168892,1764504639562,-500.0,0.00015973,2]
[395168893,1764504639571,-500.0,0.00015973,2]
[395168894,1764504639580,-500.0,0.00015973,2]
[395168895,1764504639589,-500.0,0.00015973,2]
[395168896,1764504639598,-500.0,0.00015973,2]
[395168897,1764504639607,-316.03350375,0.00015973,2]
[395168898,1764504639616,-500.0,0.00015973,2]
[395168899,1764504639626,-500.0,0.00015973,2]
[395168900,1764504639635,-500.0,0.00015973,2]
[395168901,1764504639644,-500.0,0.00015973,2]
[395168902,1764504639653,-500.0,0.00015973,2]
[395168903,1764504639662,-160.07187961,0.00015973,2]
[395168904,1764504639673,-1716.0,0.00016056,2]
[395168905,1764504639682,-200.08513291,0.000161,2]
[395168906,1764504639691,-1716.0,0.00016103,2]
[395168907,1764504639700,-1716.0,0.00016151,2]
[395168908,1764504639709,-1716.0,0.00016162,2]
[395168909,1764504639719,-1716.0,0.00016172,2]
[395168910,1764504639728,-552.02,0.00016192,2]
[395168911,1764504639737,-552.02,0.00016192,2]
[395168912,1764504639746,-552.02,0.00016192,2]